Cogmind - Beta 14 @@@ ROGUE MODE // 2024.11.09 @ 23:14:02 Player: MarKhan Result: Core destroyed Performance ------------- Evolutions (3) 1500 Regions Visited (8) 1600 Robots Destroyed (103) 515 Value Destroyed (3937) 3937 Prototype IDs (43) 860 Alien Tech Used (0) 0 Bonus (3170) 3170 TOTAL SCORE: 11582 Bonus ------- High Alert Combat Kills 1361 Follower Combat Kills 340 Entered Garrisons 200 Used RIF Installer 500 Entered DSFs 500 Aligned with FarCom 300 Friendly Fire -31 Cogmind --------- Core Integrity 0/700 Matter 121/300 Energy 251/315 System Corruption 1% Temperature Critical (4437) Movement Core (4100) Ox81 Location -7/DSF Parts ------- > --- POWER (1) -------- Neutrino Core > --- PROPULSION (5) --- Advanced Treads Advanced Treads Advanced Treads Advanced Treads Armored Medium Treads > --- UTILITY (5) ------ Cooling System Humpback Hardened Heavy Armor Plating > --- WEAPON (2) ------- Smartbomb Launcher > --- INVENTORY (35) --- Light Nuclear Core Light Treads Light Treads Light Treads Armored Treads Advanced Treads Advanced Treads Small Battery (100) Compact Matter Pod (0) Compact Matter Pod (0) Experimental Sensor Array Improved Signal Interpreter Improved Terrain Scanner Improved Kinecellerator ECM Suite Improved Medium Armor Plating Improved Medium Armor Plating Improved Medium Armor Plating Improved Thermal Shield Hacking Suite Advanced System Shield Advanced System Shield Relay Coupler [Sentry] (17) Tractor Beam Beam Rifle Spread Laser Spread Laser Pulse Rifle Beamcaster Variable Charge Gun Bore Cannon Enhanced Gauss Cannon Hypervelocity Gauss Cannon Datajack Longsword +1 Peak State ------------ > --- POWER ------------ Neutrino Core > --- PROPULSION ------- Armored Treads Advanced Treads Advanced Treads Advanced Treads Armored Medium Treads > --- UTILITY ---------- Cooling System Humpback Hardened Heavy Armor Plating > --- WEAPON ----------- Smartbomb Launcher > --- INVENTORY -------- Light Nuclear Core Light Treads Light Treads Light Treads Light Treads Light Treads Light Treads Small Battery Compact Matter Pod Compact Matter Pod Experimental Sensor Array Improved Signal Interpreter Improved Terrain Scanner Improved Kinecellerator ECM Suite Improved Medium Armor Plating Improved Medium Armor Plating Improved Medium Armor Plating Improved Thermal Shield Hacking Suite Advanced System Shield Advanced System Shield Relay Coupler [Sentry] Tractor Beam Beam Rifle Spread Laser Spread Laser Pulse Rifle Beamcaster Variable Charge Gun Bore Cannon Enhanced Gauss Cannon Hypervelocity Gauss Cannon Datajack Longsword +1 [Rating: 60] Favorites ----------- Power Ion Engine Engine Ion Engine Power Core Neutrino Core Propulsion Light Treads Treads Light Treads Wheel Compact Wheel Utility Humpback Device Improved Terrain Scanner Storage Humpback Processor Targeting Computer Hackware Relay Coupler [Sentry] Protection Improved Medium Armor Plating Weapon Spread Laser Energy Gun Spread Laser Ballistic Gun KE Penetrator Ballistic Cannon Bore Cannon Launcher Smartbomb Launcher Special Weapon Mining Laser Impact Weapon Hammer Slashing Weapon Longsword +1 Special Melee Weapon Datajack Build | -11 -10 -10 -10 -9 -8 -8 -7 -7 ------- Run | Yrd Mat Min Exi Min Mat Gar Fac DSF Slots Evolved 6 | . . . . . 4 . 2 . Power . | . . . . . . . . . Propulsion 3 | . . . . . 2 . 1 . Utility 3 | . . . . . 2 . 1 . Weapon . | . . . . . . . . . Parts Attached 120 | 7 32 4 2 8 12 45 2 8 Power 7 | 1 3 1 . . . 2 . . Engine 5 | 1 3 1 . . . . . . Core 2 | . . . . . . 2 . . Reactor . | . . . . . . . . . Propulsion 25 | 2 4 . . . 3 10 1 5 Treads 23 | . 4 . . . 3 10 1 5 Leg . | . . . . . . . . . Wheel 2 | 2 . . . . . . . . Hover . | . . . . . . . . . Flight . | . . . . . . . . . Utility 37 | 2 16 3 1 . 3 10 1 1 Device 23 | 1 13 2 . . 3 3 . 1 Storage 4 | 1 2 . 1 . . . . . Processor 3 | . 1 1 . . . 1 . . Hackware 1 | . . . . . . 1 . . Protection 6 | . . . . . . 5 1 . Artifact . | . . . . . . . . . Weapon 51 | 2 9 . 1 8 6 23 . 2 Energy Gun 16 | 2 6 . . 5 2 1 . . Energy Cannon . | . . . . . . . . . Ballistic Gun 10 | . 1 . . . 1 8 . . Ballistic Cannon 6 | . . . . . 1 4 . 1 Launcher 4 | . . . . . . 3 . 1 Special Weapon 2 | . 2 . . . . . . . Impact Weapon 1 | . . . . . 1 . . . Slashing Weapon 5 | . . . . . . 5 . . Piercing Weapon . | . . . . . . . . . Special Melee Weapon 7 | . . . 1 3 1 2 . . Unidentified Prototypes 2 | . 1 . . . 1 . . . Parts Lost 3 | . . . . . . 2 . 1 Power . | . . . . . . . . . Propulsion 1 | . . . . . . 1 . . Utility 1 | . . . . . . 1 . . Weapon 1 | . . . . . . . . 1 Highest Loss Streak 1 | . . . . . . 1 . 1 To Critical Strikes . | . . . . . . . . . Average Slot Usage (%) 92 | . 100 100 95 85 89 89 80 79 Engine 9 | . 14 14 14 14 9 1 . . Core 2 | . . . . . . 7 7 7 Treads 30 | . 25 28 28 28 35 35 36 38 Device 7 | . 5 13 9 . 18 8 7 7 Storage 11 | . 14 14 13 14 9 9 7 7 Processor 1 | . 8 . . . . . . . Protection 3 | . . . . . . 8 5 7 Energy Gun 15 | . 26 28 15 26 9 . . . Ballistic Gun 3 | . . . . . 1 8 7 2 Ballistic Cannon 2 | . . . . . 1 8 7 4 Special Melee Weapon 1 | . . . 12 1 . . . . Peak Build Rating 60 | 8 13 15 15 17 29 52 55 60 Average Rating 24 | 5 12 14 13 16 24 41 53 56 On Entrance 21 | . 8 13 15 13 17 24 51 55 Naked Turns . | . . . . . . . . . Heaviest Build 254 | 13 92 92 209 211 220 239 250 254 Greatest Support 115 | 26 40 40 40 40 80 87 107 115 Greatest Overweight (x) 11 | 1 2 2 5 5 3 2 2 11 Average Overweight (x) 2 | . 1 2 2 5 2 2 2 2 Largest Inventory Capacity 35 | 8 25 25 35 35 35 35 35 35 Average Capacity 30 | 7 21 25 27 35 35 35 35 35 Most Carried 35 | 8 25 25 28 35 35 35 35 35 Average Carried 29 | 4 19 24 24 34 33 34 33 33 Final Capacity 35 | 8 25 25 35 35 35 35 35 35 Final Carried 35 | 8 25 25 28 35 35 35 33 35 Class Distribution -------------------- 58% | Hauler-Mutant 37% | Mutant Dominant Class ---------------- Mutant | -10/Materials Mutant | -10/Mines Mutant | -10/Exiles Hauler-Mutant | -9/Mines Hauler-Assassin | -8/Materials Hauler-Mutant | -8/Garrison Hauler-Mutant | -7/Factory Hauler-Mutant | -7/DSF Resources | -11 -10 -10 -10 -9 -8 -8 -7 -7 ----------- Run | Yrd Mat Min Exi Min Mat Gar Fac DSF Matter Collected 4166 | 260 460 45 60 95 252 2565 . 429 Remotely 40 | . 40 . . . . . . . Salvage Created 3330 | 106 1094 155 . 128 133 1200 . 514 Parts 177 | 7 64 8 . 9 1 75 . 13 Haulers Intercepted 2 | . 2 . . . . . . . Recyclers Shooed 1 | . 1 . . . . . . . Parts Field Recycled . | . . . . . . . . . Retrieved Matter . | . . . . . . . . . Parts Self-Destructed . | . . . . . . . . . Prevented . | . . . . . . . . . Kills | -11 -10 -10 -10 -9 -8 -8 -7 -7 ------- Run | Yrd Mat Min Exi Min Mat Gar Fac DSF Combat Hostiles Destroyed 84 | . 23 2 . 3 3 42 . 11 Melee 1 | . . . . . . 1 . . Guns 47 | . 23 2 . 3 2 16 . 1 Cannons 21 | . . . . . 1 15 . 5 AOE 15 | . . . . . . 10 . 5 Classes Destroyed 15 | 2 6 . . . 1 3 . 3 Worker 3 | . 3 . . . . . . . Tunneler 3 | 2 . . . 1 . . . . Hauler 2 | . 2 . . . . . . . Recycler 7 | 1 3 2 . 1 . . . . Operator 1 | . 1 . . . . . . . Watcher 3 | . 3 . . . . . . . Swarmer 30 | . 9 2 . 2 . 17 . . Grunt 42 | . 14 . . 1 2 19 . 6 Brawler 1 | . . . . . . 1 . . Duelist 1 | . . . . . 1 . . . Sentry 4 | . . . . . . 4 . . Specialist 3 | . . . . . . . . 3 Hunter 1 | . . . . . . 1 . . Programmer 1 | . . . . . . . . 1 Heavy 1 | . . . . . . . . 1 Best Kill Streak 7 | 3 5 2 . 2 1 7 . 4 Combat Bots Only 7 | . 4 2 . 2 1 7 . 4 Max Kills in Single Turn 4 | 1 2 1 . 2 1 4 . 2 Gunslinging 1 | . 1 . . 1 . . . . Exploded 4 | . . . . . . 4 . 2 Melee 1 | . . . . . . 1 . . Uniques/NPCs Destroyed . | . . . . . . . . . Combat | -11 -10 -10 -10 -9 -8 -8 -7 -7 -------- Run | Yrd Mat Min Exi Min Mat Gar Fac DSF Hostile Shots Fired 383 | . 81 10 . 7 10 212 . 63 Missed 109 | . 21 7 . 4 . 61 . 16 Damage Taken 4339 | . 566 42 . 38 130 1764 . 1799 Core 1107 | . 117 . . . 13 184 . 793 Absorbed by Shields 395 | . . . . . 50 345 . . Ignored by Resistances 201 | . . . . . . 126 . 75 Regen/Repaired (Parts) 214 | . 92 . . . 122 . . . Core Remaining (%) 72 | 100 . . . 53 . 64 . . Volleys Fired 275 | 11 72 5 . 8 12 140 . 27 Largest 2 | 1 2 2 . 2 2 2 . 2 Hottest 130 | 50 130 130 . 130 82 122 . 114 Shots Fired 514 | 11 137 10 . 15 24 269 . 48 Gun 318 | 11 134 10 . 15 12 124 . 12 Cannon 173 | . . . . . 12 131 . 30 Launcher 20 | . . . . . . 14 . 6 Special 3 | . 3 . . . . . . . Kinetic 330 | . 10 . . . 24 254 . 42 Thermal 160 | 11 123 10 . 15 . 1 . . Explosive 20 | . . . . . . 14 . 6 Electromagnetic 4 | . 4 . . . . . . . Robot Hit Streak 15 | 8 15 7 . 9 6 7 . 7 Robot Miss Streak 8 | 1 5 4 . 5 2 8 . 2 Penetration Max 1 | . . . . . . 1 . 1 Secondary Targets 5 | . 3 . . 2 . . . . Max Gunslinging Chain 1 | . 1 . . 1 . . . . Shots Hit Robots 287 | 9 77 9 9 19 15 118 . 31 Core Hits 197 | 4 69 17 . 23 6 59 . 19 Critical Kills 15 | . . . . . . 13 . 2 Critical Parts Destroyed 23 | . . . . . 3 18 . 2 Critical Strikes 47 | 3 3 . . . 3 32 . 6 Burn 6 | 3 3 . . . . . . . Destroy 38 | . . . . . 3 31 . 4 Blast 2 | . . . . . . . . 2 Sever 1 | . . . . . . 1 . . Melee Attacks 36 | . . . 9 4 3 20 . . Impact 2 | . . . . . 2 . . . Slashing 15 | . . . . . . 15 . . Piercing . | . . . . . . . . . Sneak Attacks 15 | . . . 7 4 1 3 . . Combat Hostiles . | . . . . . . . . . Follow-up Attacks . | . . . . . . . . . Damage Inflicted 6831 | 110 1226 93 . 245 270 3080 . 1807 Guns 3133 | 110 1215 93 . 226 149 1149 . 191 Cannons 1731 | . . . . . 121 936 . 674 Explosions 1740 | . . . . . . 798 . 942 Melee 197 | . . . . . . 197 . . Ramming 30 | . 11 . . 19 . . . . Kinetic 3324 | . 104 . . . 270 2085 . 865 Thermal 1530 | 110 1101 93 . 226 . . . . Explosive 1740 | . . . . . . 798 . 942 Electromagnetic 10 | . 10 . . . . . . . Impact . | . . . . . . . . . Slashing 197 | . . . . . . 197 . . Piercing . | . . . . . . . . . Highest Corruption 1 | . . . . . . . . 1 Average Corruption 1 | . . . . . . . . 1 Corruption Purged . | . . . . . . . . . Corruption Blocked . | . . . . . . . . . Overload Shots . | . . . . . . . . . Overflow Damage 34 | . . . . . . . . 34 Projectiles 13 | . . . . . . . . 13 Explosions 21 | . . . . . . . . 21 Melee . | . . . . . . . . . Knockbacks 11 | . . . . . 3 6 . 2 Impact . | . . . . . . . . . Kinetic 10 | . . . . . 3 5 . 2 Secondary 1 | . . . . . . 1 . . Self-Inflicted Damage 86 | . . . . . . 86 . . Shots 3 | . . . . . . 3 . . Rammed 3 | . 1 . . 2 . . . . Targets Rammed 4 | . 1 . . 3 . . . . Kicked . | . . . . . . . . . Crushed 1 | . . . . 1 . . . . Highest Temperature 4437 | 40 322 138 . 222 188 356 . 4437 Average Temperature 220 | 18 85 65 . 94 79 79 . 1066 Received Heat Transfer 1262 | . 174 9 . 15 66 827 . 171 Effects 43 | . . . . . . 1 . 42 Shutdowns 7 | . . . . . . . . 7 Energy Bleed 7 | . . . . . . 1 . 6 Matter Decay 3 | . . . . . . . . 3 Short Circuit 7 | . . . . . . . . 7 Damage (minor) 4 | . . . . . . . . 4 Damage (major) 9 | . . . . . . . . 9 Damage (core) 6 | . . . . . . . . 6 Siege Activations . | . . . . . . . . . Robots Corrupted . | . . . . . . . . . Combat Hostiles . | . . . . . . . . . Parts Fried . | . . . . . . . . . Impact Corruptions . | . . . . . . . . . Robots Melted . | . . . . . . . . . Combat Hostiles . | . . . . . . . . . Parts Melted 5 | 1 4 . . . . . . . Heat Transferred 3492 | 555 2522 125 . 290 . . . . Parts Sabotaged . | . . . . . . . . . Parts Stolen . | . . . . . . . . . Parts Stripped . | . . . . . . . . . Power Chain Reactions . | . . . . . . . . . Alert | -11 -10 -10 -10 -9 -8 -8 -7 -7 ------- Run | Yrd Mat Min Exi Min Mat Gar Fac DSF Peak Influence 4551 | 15 277 127 . 63 87 4551 2389 1993 Initial 2389 | . 9 55 . . 14 2 2389 1672 Average 856 | 4 85 56 . 9 39 2061 2389 1853 Maximum Alert Level 5 | . 1 . . . . 5 5 5 Low Security (%) 60 | 100 94 100 . 100 100 6 . . Level 1 4 | . 5 . . . . 8 . . Level 2 3 | . . . . . . 8 . . Level 3 3 | . . . . . . 8 . . Level 4 4 | . . . . . . 13 . . Level 5 23 | . . . . . . 55 100 100 High Security . | . . . . . . . . . Max Security . | . . . . . . . . . Sterilizations 1 | . . . . . . . . 1 Squads Dispatched 7 | . 5 . . . . . . 2 Investigation 3 | . 3 . . . . . . . Extermination . | . . . . . . . . . Reinforcement 4 | . 2 . . . . . . 2 Assault . | . . . . . . . . . Garrison . | . . . . . . . . . Intercept . | . . . . . . . . . Searches Triggered . | . . . . . . . . . Construction Impeded . | . . . . . . . . . Haulers Reinforced . | . . . . . . . . . Active Scanning Responses . | . . . . . . . . . Cargo Convoy Interrupts . | . . . . . . . . . Stealth | -11 -10 -10 -10 -9 -8 -8 -7 -7 --------- Run | Yrd Mat Min Exi Min Mat Gar Fac DSF Distress Signals 2 | . 2 . . . . . . . Communications Jammed . | . . . . . . . . . Distress Signals . | . . . . . . . . . Times Spotted 122 | . 33 4 . 6 4 64 . 11 Peak Tracking Total 8 | . 5 4 . 4 2 8 . 4 Tactical Retreats 19 | . 3 . . . 1 15 . . Traps | -11 -10 -10 -10 -9 -8 -8 -7 -7 ------- Run | Yrd Mat Min Exi Min Mat Gar Fac DSF Traps Triggered 10 | . 1 . . . . 8 . 1 Indirectly . | . . . . . . . . . Trap Hack Attempts . | . . . . . . . . . Triggered . | . . . . . . . . . Disarmed . | . . . . . . . . . Reprogrammed . | . . . . . . . . . Reused . | . . . . . . . . . Traps Extracted . | . . . . . . . . . Installed . | . . . . . . . . . Triggered . | . . . . . . . . . Machines | -11 -10 -10 -10 -9 -8 -8 -7 -7 ---------- Run | Yrd Mat Min Exi Min Mat Gar Fac DSF Machines Disabled 12 | . 1 1 . 1 1 7 . 1 Max in Single Turn 2 | . 1 . . . 1 2 . 1 Garrison Relay 4 | . . . . . . 4 . . Phase Generator 1 | . . . . . . 1 . . Machines Repaired . | . . . . . . . . . Machines Dismantled . | . . . . . . . . . Machines Sabotaged . | . . . . . . . . . Overloaded Fab Kills . | . . . . . . . . . Hacking | -11 -10 -10 -10 -9 -8 -8 -7 -7 --------- Run | Yrd Mat Min Exi Min Mat Gar Fac DSF Machines Accessed 21 | . 9 1 4 . 2 4 1 . Terminals 12 | . 6 1 . . . 4 1 . Fabricators . | . . . . . . . . . Repair Stations 2 | . 1 . . . 1 . . . Recycling Units 2 | . 2 . . . . . . . Scanalyzers . | . . . . . . . . . Garrison Access 1 | . . . . . 1 . . . Total Hacks 91 | . 29 4 41 . 5 11 1 . Successful 66 | . 18 1 41 . 3 2 1 . Failed 24 | . 10 3 . . 2 9 . . Catastrophic 7 | . . 1 . . . 6 . . Database Lockouts 1 | . 1 . . . . . . . Manual 25 | . 20 4 1 . . . . . Terminals 36 | . 20 4 . . . 11 1 . Fabricators . | . . . . . . . . . Repair Stations 5 | . 3 . . . 2 . . . Recycling Units 6 | . 6 . . . . . . . Scanalyzers . | . . . . . . . . . Garrison Access 3 | . . . . . 3 . . . Terminal Hacks 54 | . 9 1 41 . . 2 1 . Record 40 | . . . 40 . . . . . Robot Analysis 4 | . 3 1 . . . . . . Prototype ID Bank 2 | . 2 . . . . . . . Open Door 1 | . . . . . . 1 . . Open DSF 1 | . . . . . . . 1 . Emergency Access Points 1 | . . . . . . 1 . . Unreport Threat 1 | . 1 . . . . . . . Locate Traps 1 | . 1 . . . . . . . Zone Layout 2 | . 2 . . . . . . . Derelict Proto ID Bank 1 | . . . 1 . . . . . Fabricator Hacks . | . . . . . . . . . Repair Station Hacks 4 | . 2 . . . 2 . . . Scan Component 2 | . 1 . . . 1 . . . Repair 2 | . 1 . . . 1 . . . Recycling Unit Hacks . | . . . . . . . . . Scanalyzer . | . . . . . . . . . Garrison Access Hacks 1 | . . . . . 1 . . . Unlock Access 1 | . . . . . 1 . . . Unauthorized Hacks 7 | . 7 . . . . . . . Terminals 2 | . 2 . . . . . . . Botnet 2 | . 2 . . . . . . . Fabricators . | . . . . . . . . . Repair Stations 1 | . 1 . . . . . . . Mechanics 1 | . 1 . . . . . . . Recycling Units 4 | . 4 . . . . . . . Reject 2 | . 2 . . . . . . . Recyclers 1 | . 1 . . . . . . . Tunnel 1 | . 1 . . . . . . . Scanalyzers . | . . . . . . . . . Garrison Access . | . . . . . . . . . Data Cores Recovered . | . . . . . . . . . Used . | . . . . . . . . . Hacking Detections 16 | . 9 1 . . 2 4 . . Full Trace Events 5 | . 1 . . . . 4 . . Feedback Events . | . . . . . . . . . Feedback Blocked . | . . . . . . . . . Robot Schematics Acquired . | . . . . . . . . . Robots Built . | . . . . . . . . . Authchips . | . . . . . . . . . Time . | . . . . . . . . . Total Robot Build Rating . | . . . . . . . . . Part Schematics Acquired . | . . . . . . . . . Parts Built . | . . . . . . . . . Authchips . | . . . . . . . . . Time . | . . . . . . . . . Total Part Build Rating . | . . . . . . . . . Parts Repaired 2 | . 1 . . . 1 . . . Time 52 | . 26 . . . 26 . . . Parts Recycled . | . . . . . . . . . Recycled Matter . | . . . . . . . . . Retrieved Matter . | . . . . . . . . . Retrieved Components . | . . . . . . . . . Parts Scanalyzed . | . . . . . . . . . Part Schematics Acquired . | . . . . . . . . . Parts Damaged . | . . . . . . . . . Bothacking | -11 -10 -10 -10 -9 -8 -8 -7 -7 ------------ Run | Yrd Mat Min Exi Min Mat Gar Fac DSF Used RIF Installer 1 | . . . . . . 1 . . Robots Hacked 11 | . . . 6 2 1 2 . . Non-combat 5 | . . . 3 1 1 . . . Combat 6 | . . . 3 1 . 2 . . Robot Hacks Applied 11 | . . . 6 2 1 2 . . parse_system 8 | . . . 6 2 . . . . find_recycling 1 | . . . . . 1 . . . streamctrl_high 2 | . . . . . . 2 . . Relay Couplers Released 19 | . . . . . . 19 . . Machine Destruction 19 | . . . . . . 19 . . Attached 1 | . . . . . . 1 . . Fabnet Peak Effective % . | . . . . . . . . . Robots Rewired 5 | . . . . . . 5 . . Allies Hacked . | . . . . . . . . . Hacks Repelled . | . . . . . . . . . Allies | -11 -10 -10 -10 -9 -8 -8 -7 -7 -------- Run | Yrd Mat Min Exi Min Mat Gar Fac DSF Total Allies 12 | . . 3 . 2 . 7 . . Largest Group 4 | . . 3 1 3 2 4 . . Highest-Rated Group 111 | . . 40 16 57 26 111 . . Highest-Rated Ally 39 | . . 16 16 31 16 39 . . Total Orders . | . . . . . . . . . Ally Attacks 47 | . . 15 . 8 1 23 . . Total Damage 839 | . . 158 . 106 16 559 . . Kills 13 | . . 4 . 2 . 7 . . Allies Corrupted . | . . . . . . . . . Allies Melted . | . . . . . . . . . Intel | -11 -10 -10 -10 -9 -8 -8 -7 -7 ------- Run | Yrd Mat Min Exi Min Mat Gar Fac DSF Robot Analysis Total 4 | . 3 1 . . . . . . Derelict Logs Recovered 4 | . . 1 . 3 . . . . Drone Launches . | . . . . . . . . . Drone Recoveries . | . . . . . . . . . Exploration | -11 -10 -10 -10 -9 -8 -8 -7 -7 ------------- Run | Yrd Mat Min Exi Min Mat Gar Fac DSF Turns Passed 17361 | 107 3758 1329 2012 3344 619 5748 37 407 Spaces Moved 4905 | 76 1425 408 544 584 170 1599 11 88 Core 9 | 9 . . . . . . . . Treads 4582 | . 1178 408 544 584 170 1599 11 88 Legs . | . . . . . . . . . Wheels 314 | 67 247 . . . . . . . Hover . | . . . . . . . . . Flight . | . . . . . . . . . Fastest Speed 50 | 50 90 320 160 560 320 320 322 310 Average Speed 327 | 87 239 320 362 560 325 321 322 354 Slowest Speed 1025 | 100 320 320 560 560 400 322 322 1025 Overloaded Moves . | . . . . . . . . . Propulsion Burnouts . | . . . . . . . . . Robots Hopped . | . . . . . . . . . Cave-ins Triggered . | . . . . . . . . . Exploration Rate (%) 66 | 4 99 73 80 93 12 97 . 76 Regions Visited 8 Branch Regions 3 Pre-discovered Areas 3 | . 1 . 1 1 . . . . Known Exits Taken 3 | . . . . 1 1 . 1 . Unknown Exits Taken 4 | 1 1 1 1 . . . . . Scrap Searched 4 | . . 1 . 3 . . . . Spaces Dug 5 | . 3 . . . 1 1 . . Terrain Destroyed 237 | . 3 . . . 5 182 . 47 Melee 1 | . . . . . 1 . . . Projectile 22 | . 3 . . . 4 13 . 2 AOE 213 | . . . . . . 168 . 45 Terrain Rammed . | . . . . . . . . . Walls Destroyed . | . . . . . . . . . Machines Disabled . | . . . . . . . . . Actions | -11 -10 -10 -10 -9 -8 -8 -7 -7 --------- Run | Yrd Mat Min Exi Min Mat Gar Fac DSF Total 5688 | 101 1625 427 583 631 211 1955 15 140 Wait 98 | . 45 . . 6 3 42 . 2 Move 4896 | 75 1424 407 543 583 169 1597 10 88 Hop . | . . . . . . . . . Pick Up 122 | 8 32 4 25 13 8 26 1 5 Fast Attach 17 | 7 1 2 1 . 1 3 1 1 Attach 11 | . 1 . . . 4 4 1 1 Detach 3 | . . 1 . . . . . 2 Swap 92 | . 30 2 1 8 7 38 . 6 Drop 91 | . 19 6 4 6 4 42 2 8 Fire 275 | 11 72 5 . 8 12 140 . 27 Melee 36 | . . . 9 4 3 20 . . Ram . | . . . . . . . . . Kick . | . . . . . . . . . Crush 4 | . 1 . . 3 . . . . Escape Stasis 4 | . . . . . . 4 . . Rewire 39 | . . . . . . 39 . . Trap . | . . . . . . . . . Miscellaneous . | . . . . . . . . . Route ------- -11/Scrapyard -10/Materials (discovered 4 exits: *Mat x3 / *Min) -10/Mines (discovered 2 exits: *Mat / *Exi) -10/Exiles (discovered 2 exits: [*Min x2]) -9/Mines -8/Materials (discovered 2 exits: Fac / Gar) -8/Garrison (discovered 3 exits: *Fac x3) -7/Factory -7/DSF History --------- Turn | Location | Event 22 | -11/Scrapyard | Discovered new exit (range 15) 108 | -11/Scrapyard | Entered Materials 300 | -10/Materials | Build established: Mutant 621 | -10/Materials | Discovered new exit (range 9) 996 | -10/Materials | Discovered new exit (range 12) 1467 | -10/Materials | Discovered new exit (range 10) 3223 | -10/Materials | Repaired Lgt. Treads 3318 | -10/Materials | Central database locked down 3425 | -10/Materials | Discovered new exit (range 6) 3866 | -10/Materials | Entered Mines 3870 | -10/Mines | Assisted by bots powering up and referring to "LRC-V3" 3911 | -10/Mines | Discovered new exit (range 7) 3932 | -10/Mines | Identified exit to Materials 4156 | -10/Mines | Deemed a non-threat by the Exiles lab entrance 4159 | -10/Mines | Discovered new exit (range 5) 4319 | -10/Mines | Found DCF Scrap (15 items) 4472 | -10/Mines | Learned Materials interactive machine intel 5195 | -10/Mines | Entered Exiles 5195 | -10/Exiles | Accompanied by 1 ally 5243 | -10/Exiles | Discovered new exit (range 15) 5282 | -10/Exiles | Met 8R-AWN 5320 | -10/Exiles | Met EX-HEX 5421 | -10/Exiles | Met EX-BIN 5470 | -10/Exiles | Aligned with FarCom system 5473 | -10/Exiles | Given EX-Vault access code 5621 | -10/Exiles | Opened EX-Vault 5635 | -10/Exiles | Found Longsword +1 5704 | -10/Exiles | Warned to stay clear of 0b10 Research branches 6063 | -10/Exiles | Met EX-DEC 6199 | -10/Exiles | Learned location of Zion (-7) 6376 | -10/Exiles | Visited The Gauntlet 6898 | -10/Exiles | Build established: Hauler-Mutant 7151 | -10/Exiles | Discovered new exit (range 12) 7207 | -10/Exiles | Left Exiles lab with Longsword +1 7207 | -10/Exiles | Entered Mines 7207 | -9/Mines | Accompanied by 1 ally 7551 | -9/Mines | Learned location of 1 exit from Materials 8837 | -9/Mines | Received a Rocket Launcher from a helpful Derelict 9400 | -9/Mines | A weapon hastily lodged in a ceiling crevice suddenly fell to the ground 9458 | -9/Mines | Identified exit to Materials 9671 | -9/Mines | Found a damaged Exp. Sensor Array with a note attached 9683 | -9/Mines | Found Prototype Device 10551 | -9/Mines | Entered Materials 10551 | -8/Materials | Accompanied by 2 allies 10551 | -8/Materials | Evolved 4 slots: Propulsion x2, Utility x2 10551 | -8/Materials | Identified Exp. Sensor Array 10552 | -8/Materials | Identified exit to Factory 10553 | -8/Materials | Loaded intel: 19 interactive machine locations 10969 | -8/Materials | Repaired Lgt. Treads 11109 | -8/Materials | Build established: Hauler-Assassin 11166 | -8/Materials | Identified exit to Garrison 11170 | -8/Materials | Entered Garrison 11442 | -8/Garrison | Triggered checkpoint 11470 | -8/Garrison | Build established: Hauler-Mutant 11546 | -8/Garrison | Garrison Relay disabled 12100 | -8/Garrison | Triggered checkpoint 12547 | -8/Garrison | Destroyed 7 combat bots 12753 | -8/Garrison | Installed Relay Interface Framework 12820 | -8/Garrison | Discovered exit to Factory (range 10) 12868 | -8/Garrison | Garrison Relay disabled 13552 | -8/Garrison | Triggered checkpoint 13688 | -8/Garrison | Discovered exit to Factory (range 9) 14124 | -8/Garrison | Garrison Relay disabled 14190 | -8/Garrison | Triggered checkpoint 14452 | -8/Garrison | Triggered checkpoint 14637 | -8/Garrison | Triggered checkpoint 14826 | -8/Garrison | Triggered checkpoint 14871 | -8/Garrison | Lost 4 allies 14965 | -8/Garrison | Discovered exit to Factory (range 15) 15488 | -8/Garrison | Triggered checkpoint 16863 | -8/Garrison | Phase Generator disabled 16918 | -8/Garrison | Entered Factory 16918 | -7/Factory | Evolved 2 slots: Propulsion x1, Utility x1 16952 | -7/Factory | Identified exit to DSF 16955 | -7/Factory | Entered DSF 17032 | -7/DSF | Additional patrols routed to DSF 17177 | -7/DSF | Sterilization system engaged 17197 | -7/DSF | Ambient heat levels rising (+10) 17212 | -7/DSF | Ambient heat levels rising (+10) 17227 | -7/DSF | Ambient heat levels rising (+10) 17242 | -7/DSF | Ambient heat levels rising (+10) 17257 | -7/DSF | Ambient heat levels rising (+10) 17272 | -7/DSF | Ambient heat levels rising (+10) 17287 | -7/DSF | Ambient heat levels rising (+10) 17302 | -7/DSF | Ambient heat levels rising (+10) 17317 | -7/DSF | Ambient heat levels rising (+10) 17329 | -7/DSF | Core integrity fell below 50% 17332 | -7/DSF | Ambient heat levels rising (+10) 17341 | -7/DSF | Core integrity fell below 20% 17347 | -7/DSF | Ambient heat levels rising (+10) 17362 | -7/DSF | Ambient heat levels rising (+10) 17363 | -7/DSF | Core destroyed Last Messages --------------- 17341_ Overheating: Core damaged (-140). 17342_ Overheating: Energy bleed (-29). 17344_ Overheating: Neutrino Core damaged (-7). 17345_ Power failure, Neutrino Core shutdown. 17345_ Overheating: Energy bleed (-36). 17347_ ALERT: Ambient heat levels +10. 17350_ Overheating: Broken Cooling System damaged (-4). 17352_ Overheating: Energy bleed (-66). 17353_ Triggered Stasis Trap. 17353_ A bubble of rippling energy engulfs the area. 17353_ Field strength at 70. 17354_ Power failure, Neutrino Core shutdown. 17355_ Overheating: Matter decay (-26). 17357_ Adv. Treads broken. 17357_ Overheating: Short circuit. 17359_ Overheating: Energy bleed (-50). 17362_ ALERT: Ambient heat levels +10. 17363_ Overheating: Core damaged (-126). Map ----- +----------------------------------------------------+ | ????????????????????????????????????? | | ????????????????????????????????????? | | ????????????????????????????????????? | | ??????????]]]???????????????????????? | | ?????????? ??????????????????????? | | ????????? ??????????????????????? | | ?????????# ^#??????????????????????? | | ????????## ##?????????????????????? | | ????????? #????????????????????? | | ????????? ?????????????????????? | | ????????? ??????????? ?????????? | | ???????### ###????????? #????????? | | ???????#!! !!#????????? &????????? | | ?????###!! !!#????????? &????????? | | ????## #!! !!#???####?? &##??????? | | ##### # ####### ## # #??????? | | !!!# ! #!!!# ##?????? | | !!!"! ##[= #!!!# # #?????? | | % [[ ??????? | | [ % % % [[#??????? | | = ! [^#??????? | | #[[[ =% #!!!# # ]][#??????? | | #[[[ #??!# ]]#??????? | | ########## ###????? # # #??????? | | #??????#!! !!#??????# & &#???????? | | #??????#!! !!#??????#&&@ &#???????? | | #??????#!! !!#??????#&& &#???????? | | #??????### ###??????### ##???????? | | #??????#== =#??????#&& #???????? | | #??????#== ==#??????#&& #???????? | | ########== = =########## ##???????? | | #!!#!!!### ###&&&# ### ###??????? | | #!!#!!!### ###&&&# ## ""##?????? | | """""????? | | ""##"????? | | "!!#!!!# !!!]]#&&&#&&##"""""#??????? | | ######## !!!]]#########"""""#??????? | | ???????#########???????##"####??????? | | ????????????????????????#"#?????????? | | ?????????????????????????""?????????? | | ????????????????????????????????????? | | ????????????????????????????????????? | | ????????????????????????????????????? | | ????????????????????????????????????? | | ????????????????????????????????????? | | | | | | | | | | | +----------------------------------------------------+ Best States ------------- Heat Dissipation 56 Energy Generation 19 Energy Capacity 315 Matter Stores 300 Matter Capacity 300 Sight Range 16 Terrain Scan Range 16 Terrain Scan Density 10 Armor Coverage 600 Resistance: TH 25 Evasion (%) 42 Targeting Accuracy 6 Recoil Reduction 5 Item Schematics ----------------- None Robot Schematics ------------------ None Fabricated ------------ Nothing Alien Tech Used ----------------- None Achievements -------------- None Challenges ------------ None Game ------ Seed CombatHeavyMonowheel Manual? 0 Play Time 01:28:13 Cumulative 78.0 hours Start 2024.11.09 @ 13:07:06 End 2024.11.09 @ 23:14:02 Sessions 3 Manual Loads 0 Difficulty Rogue Special Mode None Game No. 70 Rogue 70 Adventurer 0 Explorer 0 Win Type - Total 2 Types 2/0/0/0/0/0/0/0/0 Lore% 42 Gallery% 47 Achievement% 41 Wizard Run 0 Options --------- Layout 1 ASCII 0 Keyboard 1 Movement Arrows Keybinds 0 Fullscreen 2 Font 24/Smallcaps Map View 50x35 Zoom Use 0% Tactical HUD 1 Map Filters NONE Filters NONE Steam 1 RUN: b4bd0e27-06ef-4fae-adc4-eebc87e5758b